[Event "Israel Open Championship 2023"]
[Site "Acre"]
[Date "2024.01.28"]
[Round "8.30"]
[White "Selictar, Ori"]
[Black "Kraus, Ohad"]
[Result "0-1"]
[ECO "E54"]
[WhiteElo "1435"]
[BlackElo "2325"]
[Annotator "RC"]
[PlyCount "148"]
[EventDate "2024.01.18"]
[EventType "swiss"]
[EventCountry "ISR"]
[SourceTitle "playchess.com"]
[Source "ChessBase"]
[SourceQuality "1"]
[TimeControl "5400+30"]

1. d4 {[%emt 0:00:01]} Nf6 {[%emt 0:00:07]} 2. c4 {[%emt 0:00:10]} e6 {[%emt 0:00:09]} 3. Nc3 {[%emt 0:00:48]} Bb4 {[%emt 0:00:05]} 4. e3 {[%emt 0:00:38]} c5 {[%emt 0:00:26]} 5. Bd3 {[%emt 0:04:12]} d5 {[%emt 0:04:33]} 6. Nf3 {[%emt 0:02:45]} O-O {[%emt 0:04:15]} 7. O-O {[%emt 0:00:19]} cxd4 {[%emt 0:01:42]} 8. exd4 {[%emt 0:00:36]} dxc4 {[%emt 0:00:19]} 9. Bxc4 {[%emt 0:00:22]} Nbd7 {[%emt 0:00:49]} 10. Bg5 {[%emt 0:05:02]} h6 {[%emt 0:00:34]} 11. Bh4 {[%emt 0:00:41]} Nb6 {[%emt 0:00:51]} 12. Bb3 {[%emt 0:01:18]} Be7 {[%emt 0:06:49]} 13. Qd3 {[%emt 0:06:17]} Nbd5 {[%emt 0:00:41]} 14. Rac1 {[%emt 0:04:05]} Nb4 {[%emt 0:06:34]} 15. Qd2 {[%emt 0:01:49]} Bd7 {[%emt 0:02:15]} 16. Rfd1 {[%emt 0:11:08]} Bc6 {[%emt 0:01:16]} 17. Ne5 {[%emt 0:00:37]} Rc8 {[%emt 0:13:59]} 18. h3 {[%emt 0:10:52]} Nbd5 19. Bg3 {[%emt 0:00:38]} Nxc3 {[%emt 0:05:35]} 20. bxc3 {[%emt 0:00:30]} Be4 {[%emt 0:00:30]} 21. Bc2 {[%emt 0:01:52]} Qa5 {[%emt 0:02:00]} 22. f3 {[%emt 0:07:21]} Bxc2 {[%emt 0:01:34]} 23. Rxc2 {[%emt 0:00:34]} Rfd8 {[%emt 0:03:41]} 24. c4 {[%emt 0:04:00]} Qa4 {[%emt 0:43:46]} 25. Kh1 {[%emt 0:36:25]} Rxd4 {[%emt 0:00:00]} 26. Qxd4 {[%emt 0:00:00]} Qxc2 {[%emt 0:00:00]} 27. Rd2 {[%emt 0:00:00]} Qc1+ {[%emt 0:00:00]} 28. Rd1 {[%emt 0:00:00]} Qa3 {[%emt 0:00:00]} 29. Qf2 {[%emt 0:00:00]} Qa4 {[%emt 0:00:00]} 30. Rd3 {[%emt 0:00:00]} b6 {[%emt 0:00:00]} 31. Bh2 {[%emt 0:00:00]} Qe8 {[%emt 0:00:00]} 32. Qd2 {[%emt 0:00:00]} Ra8 {[%emt 0:00:00]} 33. Qd1 {[%emt 0:00:00]} b5 {[%emt 0:00:00]} 34. cxb5 {[%emt 0:00:00]} Qxb5 {[%emt 0:05:00]} 35. Rb3 {[%emt 0:00:00]} Qa6 {[%emt 0:00:30]} 36. Qb1 {[%emt 0:05:30]} Bd6 {[%emt 0:00:30]} 37. Ng4 {[%emt 0:00:00]} Nd5 {[%emt 0:00:00]} 38. Nf2 {[%emt 0:01:00]} Bxh2 {[%emt 0:01:00]} 39. Kxh2 {[%emt 0:00:30]} Qd6+ {[%emt 0:00:30]} 40. Kh1 {[%emt 0:00:00]} Rc8 {[%emt 0:00:00]} 41. Ne4 {[%emt 0:00:00]} Qf4 {[%emt 0:00:00]} 42. Nc5 {[%emt 0:01:30]} g6 {[%emt 0:00:00]} 43. Nd3 {[%emt 0:00:00]} Qd6 {[%emt 0:00:00]} 44. Qb2 {[%emt 0:00:00]} Nb6 {[%emt 0:00:00]} 45. Qe5 {[%emt 0:00:41]} Qxe5 {[%emt 0:00:00]} 46. Nxe5 {[%emt 0:00:03]} Kg7 {[%emt 0:00:00]} 47. Kh2 {[%emt 0:00:00]} g5 {[%emt 0:00:00]} 48. Kg3 {[%emt 0:00:00]} Rc7 {[%emt 0:00:00]} 49. h4 {[%emt 0:00:00]} Nd5 {[%emt 0:00:00]} 50. hxg5 {[%emt 0:00:00]} hxg5 {[%emt 0:00:00]} 51. Ra3 {[%emt 0:00:00]} f5 {[%emt 0:00:00]} 52. Nd3 {[%emt 0:00:00]} Kf6 {[%emt 0:00:00]} 53. Rb3 {[%emt 0:00:00]} f4+ {[%emt 0:00:00]} 54. Kh2 {[%emt 0:00:00]} Ne3 {[%emt 0:00:00]} 55. Rb2 {[%emt 0:00:00]} Nf1+ {[%emt 0:00:00]} 56. Kg1 {[%emt 0:00:00]} Ng3 {[%emt 0:00:00]} 57. Kf2 {[%emt 0:00:00]} Rd7 {[%emt 0:00:00]} 58. Rd2 {[%emt 0:00:00]} e5 {[%emt 0:00:00]} 59. Ke1 {[%emt 0:00:00]} e4 {[%emt 0:00:00]} 60. fxe4 {[%emt 0:00:00]} Nxe4 {[%emt 0:00:00]} 61. Rd1 {[%emt 0:00:32]} Rh7 {[%emt 0:07:59]} 62. Rc1 {[%emt 0:00:48]} Rh1+ {[%emt 0:01:45]} 63. Ke2 {[%emt 0:00:12]} Rxc1 {[%emt 0:00:27]} 64. Nxc1 {[%emt 0:00:02]} Kf5 {[%emt 0:00:11]} 65. a3 {[%emt 0:01:15]} Kg4 {[%emt 0:00:22]} 66. Nd3 {[%emt 0:01:12]} Kg3 {[%emt 0:00:23]} 67. Kf1 {[%emt 0:00:36]} g4 {[%emt 0:00:40]} 68. Ne5 {[%emt 0:01:24]} Nc3 {[%emt 0:00:53]} 69. Nc6 {[%emt 0:04:14]} Nd5 {[%emt 0:00:35]} 70. Nd4 {[%emt 0:00:44]} Ne3+ {[%emt 0:00:25]} 71. Kg1 {[%emt 0:00:32]} f3 {[%emt 0:00:42]} 72. gxf3 {[%emt 0:00:43]} gxf3 {[%emt 0:00:01]} 73. Nxf3 {[%emt 0:01:53]} Kxf3 {[%emt 0:00:02]} 74. a4 {[%emt 0:00:30]} a5 {[%emt 0:03:05]} 0-1

[Event "Israel Open Championship 2023"]
[Site "Acre"]
[Date "2024.01.29"]
[Round "9.2"]
[White "Rozen, Eytan"]
[Black "Postny, Evgeny"]
[Result "1/2-1/2"]
[ECO "C58"]
[WhiteElo "2462"]
[BlackElo "2597"]
[Annotator "TA"]
[PlyCount "36"]
[EventDate "2024.01.18"]
[EventType "swiss"]
[EventCountry "ISR"]
[SourceTitle "playchess.com"]
[Source "ChessBase"]
[SourceQuality "1"]
[TimeControl "5400+30"]

{[%evp 14,36,34,28,39,24,27,11,25,0,0,0,0,0,0,0,0,0,0,0,0,0,0,0,0]} 1. e4 {[%emt 0:00:03]} e5 {[%emt 0:00:15]} 2. Nf3 {[%emt 0:00:23]} Nc6 {[%emt 0:00:06]} 3. Bc4 {[%emt 0:00:04]} Nf6 {[%emt 0:00:24]} 4. Ng5 {[%emt 0:00:13]} d5 {[%emt 0:00:15]} 5. exd5 {[%emt 0:00:03]} Na5 {[%emt 0:00:09]} 6. Bb5+ {[%emt 0:00:05]} c6 {[%emt 0:01:27]} 7. dxc6 {[%emt 0:00:04]} bxc6 {[%emt 0:00:06]} 8. Bd3 {[%emt 0:00:04]} Nd5 {[%emt 0:00:35]} 9. h4 {[%emt 0:00:06][%cal Od1f3]} (9. Nxh7 $2 Nf4 10. Be4 Rxh7 $19) 9... Qc7 {[%emt 0:00:48]} 10. Nc3 {[%emt 0:00:50]} (10. Nxh7 Be7 11. Qh5 g6 $15 (11... Nf4 12. Nf6+ Bxf6 13. Qxh8+ $16)) 10... h6 {[%emt 0:03:53]} 11. Nxd5 {[%emt 0:00:19]} (11. Nf3 {simplifies} Bd6 12. Ne4 O-O 13. Nxd6 Qxd6 14. O-O) 11... cxd5 {[%emt 0:00:08] The position is equal.} 12. Qh5 {[%emt 0:00:05]} Bc5 $1 {[%emt 0:01:23]} 13. b4 {[%emt 0:00:11]} Bxb4 {[%emt 0:00:43] Hoping for ...0-0.} 14. Nxf7 {[%emt 0:02:26]} O-O {[%emt 0:00:19]} (14... Qxf7 $2 15. Bg6 (15. Qxe5+ $2 Qe6 $19) 15... O-O 16. Bxf7+ $18) 15. Nxe5 {[%emt 0:00:06] [#] 0-0 would now be deadly.} Rf5 $1 {[%emt 0:08:26]} 16. Qe8+ {[%emt 0:00:04]} ({But not} 16. Bxf5 Qxe5+ 17. Qe2 Qxf5 $19 (17... Qxa1 $2 18. Qe8+ Bf8 19. O-O $18)) 16... Rf8 {[%emt 0:00:06]} 17. Qh5 {[%emt 0:00:03] 0-0 is the strong threat.} Rf5 $1 {[%emt 0:09:50]} 18. Qe8+ {[%emt 0:00:05]} ({Don't play} 18. Bxf5 Qxe5+ 19. Qe2 Qxf5 $19 (19... Qxa1 $2 {perishes.} 20. Qe8+ Bf8 21. O-O $18)) 18... Rf8 {[%emt 0:00:06] A rather calm draw.   Weighted Error Value: White=0.05 (flawless) /Black=0.01 (flawless) .  OK:         	White=6     	Black=3      Best:        	---       	Black=2      Strong:       	---       	Black=3} 1/2-1/2

[Event "Israel Open Championship 2023"]
[Site "Acre"]
[Date "2024.01.29"]
[Round "9.3"]
[White "Alekseev, Evgeny"]
[Black "Efroimski, Marsel"]
[Result "1/2-1/2"]
[ECO "A13"]
[WhiteElo "2563"]
[BlackElo "2434"]
[Annotator "TA"]
[PlyCount "106"]
[EventDate "2024.01.18"]
[EventType "swiss"]
[EventCountry "ISR"]
[SourceTitle "playchess.com"]
[Source "ChessBase"]
[SourceQuality "1"]
[TimeControl "5400+30"]

{[%evp 11,106,2,7,0,0,6,17,14,15,8,17,0,5,0,0,0,0,0,0,0,0,0,0,-7,0,0,0,0,0,-2,0,-7,0,-8,-13,-15,-18,-19,-12,-33,-12,-15,-13,-47,-47,-47,-47,-47,-38,-39,-21,-13,-13,-7,-8,-10,0,0,0,0,0,0,0,0,0,0,0,0,0,0,0,0,0,0,0,0,0,0,0,0,0,0,0,0,0,0,0,0,0,0,0,0,0,0,0,0,32]} 1. c4 {[%emt 0:00:04]} e6 {[%emt 0:00:52]} 2. Nf3 {[%emt 0:02:29]} d5 {[%emt 0:00:06]} 3. e3 {[%emt 0:04:25]} Nf6 {[%emt 0:00:06]} 4. Nc3 {[%emt 0:01:21]} Be7 {[%emt 0:00:12]} 5. b3 {[%emt 0:02:27]} O-O {[%emt 0:00:06]} 6. Bb2 {[%emt 0:02:25]} b6 {[%emt 0:00:07]} 7. cxd5 {[%emt 0:02:04]} exd5 {[%emt 0:00:05]} 8. d4 {[%emt 0:00:55]} Ne4 {[%emt 0:00:16]} 9. Bd3 {[%emt 0:08:45]} Nxc3 {[%emt 0:00:09]} 10. Bxc3 {[%emt 0:00:04]} a5 {[%emt 0:05:36]} 11. Qc2 {[%emt 0:05:15]} h6 {[%emt 0:03:03]} 12. O-O {[%emt 0:04:39]} Ba6 {[%emt 0:00:11]} 13. Ne5 {[%emt 0:04:19]} Bxd3 {[%emt 0:01:33]} 14. Qxd3 {[%emt 0:00:22]} Bd6 {[%emt 0:00:18]} 15. Rac1 {[%emt 0:21:19]} Nd7 {[%emt 0:03:22]} 16. Qf5 {[%emt 0:05:41]} Nf6 {[%emt 0:05:24]} 17. f3 {[%emt 0:00:54]} Qc8 {[%emt 0:02:11]} 18. Qxc8 {[%emt 0:03:33]} Rfxc8 {[%emt 0:03:00]} 19. Nc6 {[%emt 0:04:00]} Re8 {[%emt 0:05:05]} 20. Bd2 {[%emt 0:01:36]} Nd7 {[%emt 0:00:45]} 21. Kf2 {[%emt 0:07:32]} f6 {[%emt 0:02:59]} 22. Rc2 {[%emt 0:01:52]} Nb8 {[%emt 0:02:35]} 23. h3 {[%emt 0:05:04]} Nxc6 {[%emt 0:01:45]} 24. Rxc6 {[%emt 0:00:01]} Re6 {[%emt 0:04:16][%cal Od6g3] [#] ...Bg3+! is the strong threat.} 25. Ke2 {[%emt 0:00:08]} h5 {[%emt 0:01:30]} 26. g4 {[%emt 0:07:08]} Kf7 {[%emt 0:03:58]} 27. Kd3 {[%emt 0:00:42]} hxg4 {[%emt 0:07:23]} 28. hxg4 {[%emt 0:00:02]} Rh8 {[%emt 0:00:44] Against Rh1} 29. Rcc1 {[%emt 0:00:08]} Rh3 {[%emt 0:00:36]} 30. a3 {[%emt 0:05:40]} Ke8 {[%emt 0:00:55][%cal Oe8d7]} 31. b4 {[%emt 0:00:12] The position is equal.} axb4 {[%emt 0:00:24]} 32. Bxb4 {[%emt 0:00:26]} Kd7 {[%emt 0:02:08]} 33. Rc3 {[%emt 0:00:38]} Bxb4 {[%emt 0:01:48]} 34. axb4 $11 {[%emt 0:00:01][%mdl 4096] Endgame. KRR-KRR} Rc6 {[%emt 0:00:51]} 35. b5 {[%emt 0:00:35]} Rxc3+ {[%emt 0:00:17]} 36. Kxc3 {[%emt 0:00:01] KR-KR} Rh2 {[%emt 0:03:08]} 37. g5 {[%emt 0:01:33]} Re2 {[%emt 0:02:50]} 38. Kd3 {[%emt 0:00:08]} Rb2 {[%emt 0:00:09]} 39. Rh1 {[%emt 0:00:07]} Rb3+ {[%emt 0:06:06]} ({Much weaker is} 39... Rxb5 $6 40. Rh7 $16) 40. Kd2 {[%emt 0:00:19]} Rxb5 {[%emt 0:00:40]} 41. Rh7 {[%emt 0:00:20][%csl LRf6,LRg7]} fxg5 {[%emt 0:01:48]} (41... Rb2+ 42. Kc3 Rg2 43. gxf6 $16) 42. Rxg7+ {[%emt 0:00:18]} Kd6 {[%emt 0:00:04]} 43. Rg6+ {[%emt 0:00:05]} Kd7 {[%emt 0:01:12]} 44. Rxg5 {[%emt 0:00:10]} c6 {[%emt 0:00:24]} 45. e4 {[%emt 0:01:48]} Rb3 {[%emt 0:01:59]} 46. Rg7+ {[%emt 0:00:00]} Ke6 {[%emt 0:00:00]} 47. Rg6+ {[%emt 0:00:00]} Kd7 {[%emt 0:00:00]} 48. Rg7+ {[%emt 0:00:00]} Ke6 {[%emt 0:00:00]} 49. Ke2 {[%emt 0:00:00]} dxe4 {[%emt 0:00:00]} 50. fxe4 {[%emt 0:00:00]} b5 {[%emt 0:00:00]} 51. Kd2 {[%emt 0:00:00]} Rf3 {[%emt 0:00:00]} 52. Rb7 {[%emt 0:00:00]} Rh3 {[%emt 0:00:00]} 53. d5+ {[%emt 0:00:00]} Ke5 {[%emt 0:00:00] Weighted Error Value: White=0.02 (flawless) /Black=0.02 (flawless) .  Inaccurate:     	White=1     	Black=1      OK:         	White=21    	Black=23     Best:        	---       	Black=2} 1/2-1/2

[Event "Israel Open Championship 2023"]
[Site "Acre"]
[Date "2024.01.29"]
[Round "9.4"]
[White "Bronstein, Or"]
[Black "Gorshtein, Ido"]
[Result "0-1"]
[ECO "E41"]
[WhiteElo "2441"]
[BlackElo "2523"]
[Annotator "RC"]
[PlyCount "222"]
[EventDate "2024.01.18"]
[EventType "swiss"]
[EventCountry "ISR"]
[SourceTitle "playchess.com"]
[Source "ChessBase"]
[SourceQuality "1"]
[TimeControl "5400+30"]

1. d4 {[%emt 0:00:42]} Nf6 {[%emt 0:00:06]} 2. c4 {[%emt 0:00:03]} e6 {[%emt 0:00:04]} 3. Nc3 {[%emt 0:00:15]} Bb4 {[%emt 0:00:08]} 4. e3 {[%emt 0:00:24]} Bxc3+ {[%emt 0:00:53]} 5. bxc3 {[%emt 0:00:31]} d6 {[%emt 0:00:03]} 6. Bd3 {[%emt 0:00:45]} c5 {[%emt 0:00:08]} 7. Ne2 {[%emt 0:01:02]} Nc6 {[%emt 0:00:07]} 8. e4 {[%emt 0:06:07]} e5 {[%emt 0:00:25]} 9. d5 {[%emt 0:04:01]} Ne7 {[%emt 0:03:34]} 10. f3 {[%emt 0:00:53]} h5 {[%emt 0:03:22]} 11. h4 {[%emt 0:03:10]} Kd7 {[%emt 0:00:40]} 12. Ng3 {[%emt 0:04:40]} Kc7 {[%emt 0:03:57]} 13. Qc2 {[%emt 0:02:22]} Bd7 {[%emt 0:03:31]} 14. a4 {[%emt 0:04:59]} a5 {[%emt 0:01:52]} 15. Bg5 {[%emt 0:05:45]} Ne8 {[%emt 0:04:52]} 16. Rb1 {[%emt 0:09:11]} b6 {[%emt 0:00:39]} 17. Rb2 {[%emt 0:00:40]} Rb8 {[%emt 0:00:31]} 18. Nf5 {[%emt 0:14:23]} f6 {[%emt 0:00:11]} 19. Bc1 {[%emt 0:00:39]} Kb7 {[%emt 0:07:32]} 20. Ra2 {[%emt 0:02:36]} Ka7 {[%emt 0:00:56]} 21. Qf2 {[%emt 0:03:58]} Rb7 {[%emt 0:02:50]} 22. Rg1 {[%emt 0:04:55]} Bc8 {[%emt 0:03:02]} 23. Ne3 {[%emt 0:00:49]} g5 {[%emt 0:02:43]} 24. g3 {[%emt 0:08:23]} Ng6 {[%emt 0:03:51]} 25. Nf5 {[%emt 0:00:24]} Ne7 {[%emt 0:04:47]} 26. Ne3 {[%emt 0:01:25]} Ng6 {[%emt 0:00:27]} 27. Nf5 {[%emt 0:00:57]} Ne7 {[%emt 0:01:47]} 28. Ne3 {[%emt 0:03:55]} Rf8 {[%emt 0:03:23]} 29. Qh2 {[%emt 0:04:06]} gxh4 {[%emt 0:01:39]} 30. Qxh4 {[%emt 0:03:30]} Ng7 {[%emt 0:01:17]} 31. Ng2 {[%emt 0:03:31]} Ng6 {[%emt 0:00:51]} 32. Qh2 {[%emt 0:00:02]} f5 {[%emt 0:01:58]} 33. Bh6 {[%emt 0:01:11]} Qf6 {[%emt 0:02:22]} 34. Rf2 {[%emt 0:02:54]} Rh8 {[%emt 0:00:55]} 35. Bd2 {[%emt 0:00:35]} h4 {[%emt 0:01:16]} 36. Ne3 {[%emt 0:03:51]} hxg3 {[%emt 0:02:42]} 37. Qxg3 {[%emt 0:00:02]} Nf4 {[%emt 0:01:20]} 38. Bf1 {[%emt 0:00:11]} Ngh5 {[%emt 0:01:49]} 39. Qg5 {[%emt 0:00:48]} fxe4 {[%emt 0:02:37]} 40. Rh2 {[%emt 0:01:16]} Qf8 {[%emt 0:01:19]} 41. Qh4 {[%emt 0:00:00]} exf3 {[%emt 0:00:00]} 42. Qf2 {[%emt 0:00:00]} Rbh7 {[%emt 0:00:00]} 43. Rgh1 {[%emt 0:00:00]} Qf7 {[%emt 0:00:00]} 44. Kd1 {[%emt 0:00:00]} Bd7 {[%emt 0:00:00]} 45. Kc1 {[%emt 0:00:00]} Bxa4 {[%emt 0:00:00]} 46. Kb2 {[%emt 0:00:00]} Nf6 {[%emt 0:00:00]} 47. Rxh7 {[%emt 0:00:00]} Rxh7 {[%emt 0:00:00]} 48. Qxf3 {[%emt 0:00:00]} Rxh1 {[%emt 0:00:00]} 49. Qxh1 {[%emt 0:00:00]} Qg6 {[%emt 0:00:00]} 50. Qh4 {[%emt 0:00:00]} Kb7 {[%emt 0:00:00]} 51. Ka2 {[%emt 0:00:00]} Kc7 {[%emt 0:00:00]} 52. Qh8 {[%emt 0:01:13]} Be8 {[%emt 0:00:00]} 53. Kb2 {[%emt 0:00:51]} a4 {[%emt 0:00:00]} 54. Qf8 {[%emt 0:02:39]} Qf7 {[%emt 0:00:00]} 55. Qh6 {[%emt 0:00:25]} Bd7 {[%emt 0:00:00]} 56. Qh8 {[%emt 0:00:45]} Kb7 {[%emt 0:00:00]} 57. Be1 {[%emt 0:02:15]} Ng4 {[%emt 0:00:00]} 58. Nc2 {[%emt 0:00:41]} Ng6 {[%emt 0:00:00]} 59. Qd8 {[%emt 0:00:01]} Nf6 {[%emt 0:00:00]} 60. Bd3 {[%emt 0:00:28]} e4 {[%emt 0:00:09]} 61. Be2 {[%emt 0:00:05]} Nf4 {[%emt 0:03:54]} 62. Bh4 {[%emt 0:00:27]} Nxe2 {[%emt 0:00:57]} 63. Bxf6 {[%emt 0:00:05]} Qe8 {[%emt 0:00:06]} 64. Qxe8 {[%emt 0:00:54]} Bxe8 {[%emt 0:00:02]} 65. Bd8 {[%emt 0:00:14]} Bd7 {[%emt 0:00:27]} 66. Ne3 {[%emt 0:00:26]} Kc8 {[%emt 0:00:47]} 67. Bh4 {[%emt 0:02:03]} Kc7 {[%emt 0:00:09]} 68. Kc2 {[%emt 0:00:19]} Nf4 {[%emt 0:00:15]} 69. Bg3 {[%emt 0:00:13]} Nh5 {[%emt 0:00:44]} 70. Bh2 {[%emt 0:00:02]} Nf6 {[%emt 0:00:28]} 71. Bf4 {[%emt 0:00:09]} Ng4 {[%emt 0:00:48]} 72. Nf1 {[%emt 0:01:03]} Nf6 {[%emt 0:04:25]} 73. Ng3 {[%emt 0:01:09]} Bg4 {[%emt 0:00:42]} 74. Bg5 {[%emt 0:00:24]} Nh5 {[%emt 0:00:59]} 75. Nf1 {[%emt 0:00:01]} Bh3 {[%emt 0:01:34]} 76. Nd2 {[%emt 0:00:48]} Bg2 {[%emt 0:00:09]} 77. Nb1 {[%emt 0:00:33]} Ng3 {[%emt 0:00:56]} 78. Kd2 {[%emt 0:00:33]} Bf1 {[%emt 0:00:47]} 79. Na3 {[%emt 0:00:01]} Nf5 {[%emt 0:00:10]} 80. Ke1 {[%emt 0:00:24]} Bd3 {[%emt 0:00:08]} 81. Kd2 {[%emt 0:00:07]} Kd7 {[%emt 0:00:42]} 82. Bf4 {[%emt 0:00:27]} Ke7 {[%emt 0:00:36]} 83. Bg5+ {[%emt 0:00:11]} Kf7 {[%emt 0:00:08]} 84. Bd8 {[%emt 0:00:42]} Kf8 {[%emt 0:03:00]} 85. Bg5 {[%emt 0:00:18]} Ke8 {[%emt 0:00:23]} 86. Bf6 {[%emt 0:01:37]} Nh6 {[%emt 0:03:32]} 87. Bg5 {[%emt 0:00:20]} Nf7 {[%emt 0:00:05]} 88. Bf6 {[%emt 0:00:34]} Nd8 {[%emt 0:03:32]} 89. Bg5 {[%emt 0:00:59]} Nb7 {[%emt 0:00:14]} 90. Ke3 {[%emt 0:00:26]} Kd7 {[%emt 0:00:10]} 91. Kf4 {[%emt 0:00:30]} Na5 {[%emt 0:00:08]} 92. Ke3 {[%emt 0:00:13]} Nxc4+ {[%emt 0:00:56]} 93. Nxc4 {[%emt 0:00:02]} Bxc4 {[%emt 0:00:08]} 94. Kxe4 {[%emt 0:00:03]} a3 {[%emt 0:00:08]} 95. Bc1 {[%emt 0:00:05]} a2 {[%emt 0:00:03]} 96. Bb2 {[%emt 0:00:05]} b5 {[%emt 0:00:59]} 97. Ba1 {[%emt 0:00:06]} Kc7 {[%emt 0:00:13]} 98. Bb2 {[%emt 0:00:05]} Kb6 {[%emt 0:00:04]} 99. Ke3 {[%emt 0:00:59]} Ka5 {[%emt 0:00:07]} 100. Kd2 {[%emt 0:00:04]} Ka4 {[%emt 0:00:17]} 101. Kc2 {[%emt 0:00:11]} Bb3+ {[%emt 0:00:03]} 102. Kd2 {[%emt 0:00:18]} Bxd5 {[%emt 0:00:03]} 103. Kc2 {[%emt 0:00:05]} Be4+ {[%emt 0:00:06]} 104. Kd2 {[%emt 0:00:16]} Kb3 {[%emt 0:00:02]} 105. Ba1 {[%emt 0:00:15]} d5 {[%emt 0:00:28]} 106. Kd1 {[%emt 0:00:14]} d4 {[%emt 0:00:28]} 107. cxd4 {[%emt 0:00:09]} c4 {[%emt 0:00:02]} 108. Kd2 {[%emt 0:00:35]} b4 {[%emt 0:00:06]} 109. d5 {[%emt 0:00:15]} Bxd5 {[%emt 0:00:12]} 110. Kd1 {[%emt 0:00:05]} c3 {[%emt 0:00:07]} 111. Kc1 {[%emt 0:00:05]} Kc4 {[%emt 0:00:04]} 0-1

[Event "Israel Open Championship 2023"]
[Site "Acre"]
[Date "2024.01.29"]
[Round "9.5"]
[White "Mikhalevski, Victor"]
[Black "Baron, Tal"]
[Result "1/2-1/2"]
[ECO "A56"]
[WhiteElo "2524"]
[BlackElo "2490"]
[Annotator "TA"]
[PlyCount "60"]
[EventDate "2024.01.18"]
[EventType "swiss"]
[EventCountry "ISR"]
[SourceTitle "playchess.com"]
[Source "ChessBase"]
[SourceQuality "1"]
[TimeControl "5400+30"]

{[%evp 9,60,26,32,24,32,18,50,31,46,33,79,86,81,71,83,4,6,9,16,0,0,0,0,6,7,10,24,12,52,38,57,60,69,41,56,52,85,77,27,0,0,0,0,-124,-132,-137,-130,-100,0,-50,0,-108,0]} 1. c4 {[%emt 0:00:04]} c5 {[%emt 0:00:44]} 2. Nc3 {[%emt 0:00:12]} g6 {[%emt 0:00:10]} 3. e3 {[%emt 0:00:13]} Nf6 {[%emt 0:00:42]} 4. d4 {[%emt 0:00:12]} Bg7 {[%emt 0:01:45]} 5. d5 {[%emt 0:00:44]} d6 {[%emt 0:02:13]} 6. h3 {[%emt 0:03:32]} O-O {[%emt 0:01:29]} 7. Nf3 {[%emt 0:00:34]} e5 {[%emt 0:02:44]} 8. Qc2 {[%emt 0:05:15] White is slightly better.} Na6 {[%emt 0:06:11][%cal Ob7b5]} 9. a3 {[%emt 0:02:17]} h5 {[%emt 0:04:39]} (9... e4 $14 10. Nd2 Nc7) 10. e4 $16 {[%emt 0:02:47]} Nh7 {[%emt 0:02:00]} 11. g3 {[%emt 0:00:24] White is more active.} Bd7 {[%emt 0:01:02]} 12. Nb5 {[%emt 0:04:53]} (12. Rb1 $16) 12... Nc7 $1 $11 {[%emt 0:10:15]} 13. Nxc7 {[%emt 0:02:54]} (13. Nxd6 Qf6 14. Nxe5 Qxd6 (14... Qxe5 15. Nxb7 Qe7 16. d6 $17) 15. Nxd7 Qxd7 $17) 13... Qxc7 {[%emt 0:00:03]} 14. Bd3 {[%emt 0:00:25]} a6 {[%emt 0:01:19]} 15. Kf1 {[%emt 0:02:14]} b5 {[%emt 0:04:18]} 16. Kg2 {[%emt 0:01:24]} bxc4 {[%emt 0:12:42]} 17. Bxc4 {[%emt 0:00:07]} f5 {[%emt 0:00:08]} 18. Nh4 {[%emt 0:02:43]} Rf6 {[%emt 0:00:28]} (18... Rf7 {feels hotter.} 19. Nxg6 fxe4 20. Be3 Rb8) 19. f4 {[%emt 0:03:11] [#] Strongly threatening fxe5.} Re8 {[%emt 0:01:50]} 20. exf5 {[%emt 0:00:35]} (20. Bxa6 $2 fxe4 21. Be3 exf4 22. gxf4 Rf7 $19) 20... Bxf5 {[%emt 0:15:24]} 21. Nxf5 {[%emt 0:00:09]} Rxf5 {[%emt 0:00:05]} 22. Bd3 {[%emt 0:05:18]} Qf7 {[%emt 0:01:06][%cal Re5f4] aiming for ...exf4!} 23. Bxf5 {[%emt 0:00:19]} (23. Bxa6 exf4 (23... Qxd5+ 24. Kh2 $14) 24. Bxf4 g5 (24... Rxd5 $2 25. Bc4 $18) (24... Qxd5+ 25. Kh2 $11) 25. Bxd6 Qxd5+ (25... Rxd5 $2 26. Bc4 $18) 26. Kh2 Qxd6 $19) 23... gxf5 {[%emt 0:00:07]} 24. Rd1 {[%emt 0:02:43]} e4 {[%emt 0:00:15]} 25. Be3 {[%emt 0:01:11]} Nf6 {[%emt 0:00:41]} 26. Qc4 {[%emt 0:00:10] [#]} (26. Qd2 $11) 26... h4 $1 $17 {[%emt 0:00:36][%mdl 512]} 27. gxh4 {[%emt 0:08:11][%cal Oa1b1]} (27. Qxa6 $2 Qg6 28. g4 Nxg4 $19) 27... Qh5 {[%emt 0:00:50]} 28. Qf1 {[%emt 0:06:04] Wards off Qf3+} Qf7 {[%emt 0:02:26]} ({Black should try} 28... Qxh4 $17 {White must now prevent ...Kf7.} 29. b4 (29. Qxa6 $2 Nh5 $19) (29. Qf2 Qh6 $17) 29... Kf7 (29... Nh5 30. Qf2 $11) 30. bxc5 (30. Qxa6 $2 Nh5 $19) 30... Rh8) 29. Qc4 $15 {[%emt 0:00:40][%cal Oa1b1]} Qh5 {[%emt 0:00:04]} (29... Kh7 $15) 30. Qf1 $17 {[%emt 0:05:18]} Qf7 {[%emt 0:00:04] Weighted Error Value: White=0.18 (very precise) /Black=0.18 (very precise) .  Mistake:       	White=2     	Black=4      Inaccurate:     	White=2     	Black=3      OK:         	White=10    	Black=8      Best:        	White=1     	Black=1      Strong:       	---       	Black=1      Brilliant:      	---       	Black=1} (30... Qxh4 $17 31. b4 (31. Qxa6 $2 {is the wrong capture.} Nh5 $19) (31. Qf2 Qh6 $17) 31... Kf7 (31... Nh5 32. Qf2 $11)) 1/2-1/2